[Event "Titled Tuesday Blitz April 11 Late 2023"]
[White "Tanenbaum, Zachary"]
[Black "Gurevich, Dmitry"]
[WhiteFideId "2060850"]
[BlackFideId "2000407"]
[WhiteElo "2175"]
[BlackElo "2506"]
[Result "1-0"]
[Round "09"]
[TimeControl "180+2"]
[Date "2023.04.11"]
[WhiteClock "0:00:15"]
[BlackClock "0:00:16"]

1. e4 {[%clk 0:03:00]}  c5 {[%clk 0:02:59]} 2. Nf3 {[%clk 0:03:00]}  d6 {[%clk 0:02:59]} 3. d4 {[%clk 0:03:01]}  cxd4 {[%clk 0:02:59]} 4. Nxd4 {[%clk 0:03:02]}  Nf6 {[%clk 0:02:59]} 5. Nc3 {[%clk 0:03:02]}  Nc6 {[%clk 0:03:00]} 6. Bg5 {[%clk 0:03:02]}  g6 {[%clk 0:02:59]} 7. Bb5 {[%clk 0:02:58]}  Bd7 {[%clk 0:02:58]} 8. Bxf6 {[%clk 0:02:58]}  exf6 {[%clk 0:02:57]} 9. Nde2 {[%clk 0:02:58]}  Be7 {[%clk 0:02:57]} 10. Qd2 {[%clk 0:02:56]}  O-O {[%clk 0:02:56]} 11. h4 {[%clk 0:02:52]}  h5 {[%clk 0:02:54]} 12. O-O-O {[%clk 0:02:50]}  f5 {[%clk 0:02:54]} 13. g3 {[%clk 0:02:28]}  a6 {[%clk 0:02:51]} 14. Bd3 {[%clk 0:02:27]}  Ne5 {[%clk 0:02:47]} 15. Nd5 {[%clk 0:02:15]}  Rc8 {[%clk 0:02:33]} 16. Nec3 {[%clk 0:01:58]}  Re8 {[%clk 0:02:22]} 17. Nxe7+ {[%clk 0:01:47]}  Qxe7 {[%clk 0:02:22]} 18. exf5 {[%clk 0:01:32]}  Nxd3+ {[%clk 0:02:20]} 19. Qxd3 {[%clk 0:01:33]}  Bxf5 {[%clk 0:02:20]} 20. Qxd6 {[%clk 0:01:31]}  Rxc3 {[%clk 0:02:10]} 21. bxc3 {[%clk 0:01:29]}  Qe4 {[%clk 0:02:10]} 22. Qd2 {[%clk 0:01:13]}  Qc4 {[%clk 0:01:50]} 23. Rhe1 {[%clk 0:01:00]}  Re6 {[%clk 0:01:37]} 24. Rxe6 {[%clk 0:00:56]}  Bxe6 {[%clk 0:01:36]} 25. Qd8+ {[%clk 0:00:29]}  Kh7 {[%clk 0:01:35]} 26. Qf6 {[%clk 0:00:29]}  Bg4 {[%clk 0:01:04]} 27. Rd8 {[%clk 0:00:25]}  Qf1+ {[%clk 0:00:59]} 28. Kd2 {[%clk 0:00:15]}  Qd1+ {[%clk 0:00:58]} 29. Ke3 {[%clk 0:00:15]}  Qe2+ {[%clk 0:00:17]} 30. Kd4 {[%clk 0:00:15]}  Qd2+ {[%clk 0:00:18]} 31. Kc5 {[%clk 0:00:15]}  b6+ {[%clk 0:00:16]} 32. Kxb6 {[%clk 0:00:15]} 1-0


[Site "https://www.chess.com"]

[Event "Titled Tuesday Blitz April 11 Late 2023"]
[White "Bilych, Olexiy"]
[Black "Wu, Brandon"]
[WhiteFideId "14156504"]
[BlackFideId "30909228"]
[WhiteElo "2320"]
[BlackElo "2123"]
[Result "1-0"]
[Round "09"]
[TimeControl "180+2"]
[Date "2023.04.11"]
[WhiteClock "0:01:12"]
[BlackClock "0:00:15"]

1. d4 {[%clk 0:03:00]}  Nf6 {[%clk 0:02:59]} 2. a3 {[%clk 0:02:51]}  g6 {[%clk 0:02:59]} 3. h3 {[%clk 0:02:51]}  Bg7 {[%clk 0:02:59]} 4. c3 {[%clk 0:02:51]}  c5 {[%clk 0:02:58]} 5. g3 {[%clk 0:02:51]}  cxd4 {[%clk 0:02:58]} 6. cxd4 {[%clk 0:02:52]}  O-O {[%clk 0:02:58]} 7. Bg2 {[%clk 0:02:53]}  d5 {[%clk 0:02:59]} 8. Nc3 {[%clk 0:02:53]}  Nc6 {[%clk 0:02:59]} 9. Nf3 {[%clk 0:02:53]}  Ne4 {[%clk 0:02:58]} 10. O-O {[%clk 0:02:54]}  Nxc3 {[%clk 0:02:57]} 11. bxc3 {[%clk 0:02:55]}  Na5 {[%clk 0:02:57]} 12. Nd2 {[%clk 0:02:54]}  Be6 {[%clk 0:02:53]} 13. Rb1 {[%clk 0:02:54]}  Rc8 {[%clk 0:02:53]} 14. Qc2 {[%clk 0:02:45]}  Bf5 {[%clk 0:02:47]} 15. e4 {[%clk 0:02:42]}  dxe4 {[%clk 0:02:46]} 16. Nxe4 {[%clk 0:02:41]}  Qxd4 {[%clk 0:02:11]} 17. cxd4 {[%clk 0:02:25]}  Rxc2 {[%clk 0:02:10]} 18. Bg5 {[%clk 0:02:26]}  Re2 {[%clk 0:01:41]} 19. Rbe1 {[%clk 0:02:02]}  Rxe1 {[%clk 0:01:35]} 20. Rxe1 {[%clk 0:02:03]}  Bxd4 {[%clk 0:01:35]} 21. Bxe7 {[%clk 0:01:57]}  Rc8 {[%clk 0:00:47]} 22. Rd1 {[%clk 0:01:51]}  Bxe4 {[%clk 0:00:39]} 23. Bxe4 {[%clk 0:01:51]}  Nb3 {[%clk 0:00:32]} 24. Bd5 {[%clk 0:01:39]}  Nc1 {[%clk 0:00:31]} 25. Bg5 {[%clk 0:01:27]}  Ne2+ {[%clk 0:00:26]} 26. Kf1 {[%clk 0:01:27]}  Re8 {[%clk 0:00:24]} 27. Bf3 {[%clk 0:01:21]}  f6 {[%clk 0:00:14]} 28. Bxe2 {[%clk 0:01:20]}  Bb2 {[%clk 0:00:14]} 29. Bh6 {[%clk 0:01:16]}  Bxa3 {[%clk 0:00:13]} 30. Bc4+ {[%clk 0:01:16]}  Kh8 {[%clk 0:00:13]} 31. Rd7 {[%clk 0:01:17]}  Bf8 {[%clk 0:00:11]} 32. Bxf8 {[%clk 0:01:17]}  Rxf8 {[%clk 0:00:12]} 33. Rxb7 {[%clk 0:01:17]}  Rc8 {[%clk 0:00:13]} 34. Bd3 {[%clk 0:01:15]}  a5 {[%clk 0:00:13]} 35. Ra7 {[%clk 0:01:12]}  a4 {[%clk 0:00:13]} 36. Rxa4 {[%clk 0:01:12]}  Rd8 {[%clk 0:00:13]} 37. Ke2 {[%clk 0:01:12]}  Re8+ {[%clk 0:00:14]} 38. Re4 {[%clk 0:01:12]}  Kg7 {[%clk 0:00:15]} 39. Rxe8 {[%clk 0:01:12]} 1-0


[Site "https://www.chess.com"]

[Event "Titled Tuesday Blitz April 11 Late 2023"]
[White "Adewumi, Tanitoluwa"]
[Black "Kovalevsky, Stanislav"]
[WhiteFideId "30966396"]
[BlackFideId "13508598"]
[WhiteElo "2283"]
[BlackElo "2174"]
[Result "1-0"]
[Round "09"]
[TimeControl "180+2"]
[Date "2023.04.11"]
[WhiteClock "0:00:06"]
[BlackClock "0:00:19"]

1. e4 {[%clk 0:03:00]}  e6 {[%clk 0:03:00]} 2. d4 {[%clk 0:02:42]}  d5 {[%clk 0:03:00]} 3. exd5 {[%clk 0:02:43]}  exd5 {[%clk 0:03:00]} 4. Nf3 {[%clk 0:02:42]}  Nf6 {[%clk 0:03:01]} 5. Bd3 {[%clk 0:02:40]}  Bg4 {[%clk 0:02:59]} 6. h3 {[%clk 0:02:33]}  Bh5 {[%clk 0:02:59]} 7. O-O {[%clk 0:02:32]}  Be7 {[%clk 0:02:59]} 8. c4 {[%clk 0:02:29]}  O-O {[%clk 0:02:57]} 9. Nc3 {[%clk 0:02:28]}  c6 {[%clk 0:02:52]} 10. Bf4 {[%clk 0:02:16]}  dxc4 {[%clk 0:02:47]} 11. Bxc4 {[%clk 0:02:14]}  Bxf3 {[%clk 0:02:47]} 12. Qxf3 {[%clk 0:02:13]}  Qxd4 {[%clk 0:02:47]} 13. Bb3 {[%clk 0:02:12]}  Nbd7 {[%clk 0:02:44]} 14. Rad1 {[%clk 0:02:13]}  Qb4 {[%clk 0:02:37]} 15. Rfe1 {[%clk 0:02:09]}  Rfe8 {[%clk 0:02:27]} 16. Rxd7 {[%clk 0:02:08]}  Nxd7 {[%clk 0:02:13]} 17. Bxf7+ {[%clk 0:02:07]}  Kh8 {[%clk 0:02:11]} 18. Bxe8 {[%clk 0:02:04]}  Rxe8 {[%clk 0:02:12]} 19. Bg5 {[%clk 0:01:55]}  Nf6 {[%clk 0:01:33]} 20. Bxf6 {[%clk 0:01:55]}  gxf6 {[%clk 0:01:34]} 21. a3 {[%clk 0:01:48]}  Qxb2 {[%clk 0:01:30]} 22. Qh5 {[%clk 0:01:32]}  Rd8 {[%clk 0:01:12]} 23. Ne4 {[%clk 0:00:20]}  Qe5 {[%clk 0:01:04]} 24. Qe2 {[%clk 0:00:15]}  f5 {[%clk 0:01:00]} 25. f4 {[%clk 0:00:12]}  Qxe4 {[%clk 0:00:57]} 26. Qb2+ {[%clk 0:00:12]}  Kg8 {[%clk 0:00:55]} 27. Rxe4 {[%clk 0:00:12]}  fxe4 {[%clk 0:00:48]} 28. Qxb7 {[%clk 0:00:12]}  Bc5+ {[%clk 0:00:45]} 29. Kf1 {[%clk 0:00:10]}  e3 {[%clk 0:00:31]} 30. Qxc6 {[%clk 0:00:05]}  Bb6 {[%clk 0:00:27]} 31. a4 {[%clk 0:00:04]}  Rd1+ {[%clk 0:00:23]} 32. Ke2 {[%clk 0:00:04]}  Rd2+ {[%clk 0:00:23]} 33. Ke1 {[%clk 0:00:05]}  Rb2 {[%clk 0:00:18]} 34. Qe8+ {[%clk 0:00:02]}  Kg7 {[%clk 0:00:16]} 35. Qe5+ {[%clk 0:00:03]}  Kg6 {[%clk 0:00:17]} 36. Qxb2 {[%clk 0:00:04]}  Ba5+ {[%clk 0:00:17]} 37. Ke2 {[%clk 0:00:05]}  Bd2 {[%clk 0:00:18]} 38. Qe5 {[%clk 0:00:05]}  h5 {[%clk 0:00:18]} 39. g4 {[%clk 0:00:05]}  hxg4 {[%clk 0:00:18]} 40. hxg4 {[%clk 0:00:06]}  Kf7 {[%clk 0:00:18]} 41. Qxe3 {[%clk 0:00:06]}  a5 {[%clk 0:00:19]} 42. Qxd2 {[%clk 0:00:06]} 1-0


[Site "https://www.chess.com"]

[Event "Titled Tuesday Blitz April 11 Late 2023"]
[White "Alimpic, Aleksa"]
[Black "Cori T., Deysi"]
[WhiteFideId "974323"]
[BlackFideId "3801934"]
[WhiteElo "2273"]
[BlackElo "2292"]
[Result "1/2-1/2"]
[Round "09"]
[TimeControl "180+2"]
[Date "2023.04.11"]
[WhiteClock "0:00:02"]
[BlackClock "0:00:14"]

1. d4 {[%clk 0:03:00]}  e6 {[%clk 0:02:59]} 2. c4 {[%clk 0:03:00]}  b6 {[%clk 0:02:58]} 3. Nc3 {[%clk 0:02:54]}  Bb7 {[%clk 0:02:58]} 4. a3 {[%clk 0:02:51]}  f5 {[%clk 0:02:57]} 5. Nf3 {[%clk 0:02:36]}  Nf6 {[%clk 0:02:56]} 6. g3 {[%clk 0:02:35]}  Be7 {[%clk 0:02:56]} 7. Bg2 {[%clk 0:02:35]}  O-O {[%clk 0:02:56]} 8. O-O {[%clk 0:02:36]}  Qe8 {[%clk 0:02:56]} 9. Re1 {[%clk 0:02:27]}  Qh5 {[%clk 0:02:55]} 10. Ne5 {[%clk 0:02:20]}  Bxg2 {[%clk 0:02:53]} 11. Kxg2 {[%clk 0:02:20]}  d6 {[%clk 0:02:54]} 12. Nf3 {[%clk 0:02:20]}  Nbd7 {[%clk 0:02:53]} 13. e4 {[%clk 0:02:14]}  Rae8 {[%clk 0:01:47]} 14. exf5 {[%clk 0:01:38]}  exf5 {[%clk 0:01:47]} 15. Bg5 {[%clk 0:01:29]}  h6 {[%clk 0:01:44]} 16. Bxf6 {[%clk 0:01:29]}  Nxf6 {[%clk 0:01:44]} 17. d5 {[%clk 0:01:25]}  f4 {[%clk 0:01:39]} 18. Nd4 {[%clk 0:01:20]}  Ng4 {[%clk 0:01:35]} 19. h3 {[%clk 0:01:20]}  f3+ {[%clk 0:01:33]} 20. Nxf3 {[%clk 0:01:10]}  Nxf2 {[%clk 0:01:32]} 21. Kxf2 {[%clk 0:01:02]}  Qxh3 {[%clk 0:01:32]} 22. Rh1 {[%clk 0:00:35]}  Qg4 {[%clk 0:01:31]} 23. Kg2 {[%clk 0:00:34]}  Bf6 {[%clk 0:01:14]} 24. Qd3 {[%clk 0:00:32]}  Bxc3 {[%clk 0:00:59]} 25. bxc3 {[%clk 0:00:25]}  Rxf3 {[%clk 0:00:59]} 26. Qxf3 {[%clk 0:00:21]}  Re2+ {[%clk 0:00:59]} 27. Qxe2 {[%clk 0:00:18]}  Qxe2+ {[%clk 0:00:59]} 28. Kh3 {[%clk 0:00:17]}  Qxc4 {[%clk 0:00:55]} 29. Rae1 {[%clk 0:00:15]}  Qxd5 {[%clk 0:00:55]} 30. Re8+ {[%clk 0:00:16]}  Kh7 {[%clk 0:00:54]} 31. Rhe1 {[%clk 0:00:16]}  c5 {[%clk 0:00:42]} 32. R8e7 {[%clk 0:00:12]}  a5 {[%clk 0:00:42]} 33. Rc7 {[%clk 0:00:10]}  Qf5+ {[%clk 0:00:42]} 34. Kg2 {[%clk 0:00:08]}  Qc2+ {[%clk 0:00:42]} 35. Kh3 {[%clk 0:00:08]}  Qxc3 {[%clk 0:00:42]} 36. Ree7 {[%clk 0:00:08]}  Qf6 {[%clk 0:00:40]} 37. a4 {[%clk 0:00:07]}  d5 {[%clk 0:00:40]} 38. Red7 {[%clk 0:00:07]}  d4 {[%clk 0:00:40]} 39. Kg2 {[%clk 0:00:08]}  Qe5 {[%clk 0:00:39]} 40. Re7 {[%clk 0:00:06]}  Qd5+ {[%clk 0:00:39]} 41. Kh3 {[%clk 0:00:06]}  Qg5 {[%clk 0:00:39]} 42. Red7 {[%clk 0:00:05]}  Qf6 {[%clk 0:00:33]} 43. Kg2 {[%clk 0:00:04]}  Qg5 {[%clk 0:00:23]} 44. Kf3 {[%clk 0:00:04]}  Qe3+ {[%clk 0:00:23]} 45. Kg2 {[%clk 0:00:04]}  Qe2+ {[%clk 0:00:23]} 46. Kh3 {[%clk 0:00:04]}  Qe5 {[%clk 0:00:22]} 47. Kg2 {[%clk 0:00:04]}  d3 {[%clk 0:00:18]} 48. Kf3 {[%clk 0:00:04]}  Qf5+ {[%clk 0:00:17]} 49. Ke3 {[%clk 0:00:04]}  c4 {[%clk 0:00:17]} 50. Rxg7+ {[%clk 0:00:02]}  Kh8 {[%clk 0:00:18]} 51. Rgf7 {[%clk 0:00:02]}  Qe5+ {[%clk 0:00:17]} 52. Kd2 {[%clk 0:00:02]}  Qb2+ {[%clk 0:00:17]} 53. Ke3 {[%clk 0:00:02]}  Qe5+ {[%clk 0:00:15]} 54. Kd2 {[%clk 0:00:02]}  Qg5+ {[%clk 0:00:14]} 55. Kc3 {[%clk 0:00:02]}  Qe5+ {[%clk 0:00:14]} 56. Kd2 {[%clk 0:00:02]} 1/2-1/2


[Site "https://www.chess.com"]

[Event "Titled Tuesday Blitz April 11 Late 2023"]
[White "Senthilkumar, Pranav"]
[Black "Rosen, Eric"]
[WhiteFideId "2083477"]
[BlackFideId "2032562"]
[WhiteElo "1860"]
[BlackElo "2331"]
[Result "1-0"]
[Round "09"]
[TimeControl "180+2"]
[Date "2023.04.11"]
[WhiteClock "0:01:15"]
[BlackClock "0:00:01"]

1. d4 {[%clk 0:03:00]}  d5 {[%clk 0:03:00]} 2. Nf3 {[%clk 0:02:58]}  Nf6 {[%clk 0:03:00]} 3. c4 {[%clk 0:02:58]}  e6 {[%clk 0:03:00]} 4. h3 {[%clk 0:02:58]}  dxc4 {[%clk 0:02:41]} 5. Qa4+ {[%clk 0:02:45]}  Nbd7 {[%clk 0:02:31]} 6. Qxc4 {[%clk 0:02:44]}  c5 {[%clk 0:02:32]} 7. e3 {[%clk 0:02:34]}  Rb8 {[%clk 0:02:20]} 8. Qd3 {[%clk 0:02:26]}  b5 {[%clk 0:02:10]} 9. Nc3 {[%clk 0:02:23]}  a6 {[%clk 0:02:09]} 10. Be2 {[%clk 0:02:19]}  Bb7 {[%clk 0:02:10]} 11. O-O {[%clk 0:02:18]}  Bd6 {[%clk 0:02:03]} 12. b3 {[%clk 0:02:05]}  Qc7 {[%clk 0:01:27]} 13. Bb2 {[%clk 0:02:02]}  cxd4 {[%clk 0:01:27]} 14. Nxd4 {[%clk 0:02:00]}  Ne5 {[%clk 0:01:24]} 15. Qd2 {[%clk 0:01:54]}  b4 {[%clk 0:01:20]} 16. Ncb5 {[%clk 0:01:45]}  Qe7 {[%clk 0:00:50]} 17. Nf5 {[%clk 0:01:38]}  exf5 {[%clk 0:00:24]} 18. Nxd6+ {[%clk 0:01:38]}  Kf8 {[%clk 0:00:24]} 19. Nxf5 {[%clk 0:01:32]}  Qc5 {[%clk 0:00:08]} 20. Bxe5 {[%clk 0:01:25]}  Qxe5 {[%clk 0:00:05]} 21. Qxb4+ {[%clk 0:01:25]}  Ke8 {[%clk 0:00:04]} 22. Nd6+ {[%clk 0:01:24]}  Kd7 {[%clk 0:00:03]} 23. Nxb7 {[%clk 0:01:24]}  Nd5 {[%clk 0:00:02]} 24. Qa4+ {[%clk 0:01:22]}  Ke7 {[%clk 0:00:01]} 25. Na5 {[%clk 0:01:19]}  Rb4 {[%clk 0:00:01]} 26. Nc6+ {[%clk 0:01:19]}  Kd6 {[%clk 0:00:01]} 27. Nxe5 {[%clk 0:01:15]}  Rxa4 {[%clk 0:00:01]} 28. bxa4 {[%clk 0:01:16]}  Kxe5 {[%clk 0:00:01]} 29. Bxa6 {[%clk 0:01:16]}  h6 {[%clk 0:00:01]} 30. Rac1 {[%clk 0:01:15]}  g5 {[%clk 0:00:01]} 31. Rc5 {[%clk 0:01:15]} 1-0


[Site "https://www.chess.com"]

[Event "Titled Tuesday Blitz April 11 Late 2023"]
[White "Martic, Ivan"]
[Black "Sliwicki, Damian"]
[WhiteFideId "929301"]
[BlackFideId "1127128"]
[WhiteElo "2360"]
[BlackElo "2030"]
[Result "1-0"]
[Round "09"]
[TimeControl "180+2"]
[Date "2023.04.11"]
[WhiteClock "0:01:03"]
[BlackClock "0:00:01"]

1. e4 {[%clk 0:02:54]}  e5 {[%clk 0:02:46]} 2. Nf3 {[%clk 0:02:53]}  Nc6 {[%clk 0:02:43]} 3. Nc3 {[%clk 0:02:51]}  Nf6 {[%clk 0:02:42]} 4. Bb5 {[%clk 0:02:50]}  Bb4 {[%clk 0:02:39]} 5. O-O {[%clk 0:02:47]}  Bxc3 {[%clk 0:02:36]} 6. bxc3 {[%clk 0:02:44]}  O-O {[%clk 0:02:33]} 7. d3 {[%clk 0:02:38]}  d6 {[%clk 0:02:31]} 8. Bg5 {[%clk 0:02:31]}  h6 {[%clk 0:02:26]} 9. Bc1 {[%clk 0:02:16]}  Ne7 {[%clk 0:02:23]} 10. Re1 {[%clk 0:02:14]}  Ng6 {[%clk 0:02:17]} 11. d4 {[%clk 0:02:13]}  c6 {[%clk 0:02:08]} 12. Bd3 {[%clk 0:02:08]}  Re8 {[%clk 0:01:51]} 13. h3 {[%clk 0:02:06]}  Nf4 {[%clk 0:01:27]} 14. Bxf4 {[%clk 0:02:03]}  exf4 {[%clk 0:01:26]} 15. Qd2 {[%clk 0:02:00]}  Nh5 {[%clk 0:01:26]} 16. e5 {[%clk 0:01:44]}  dxe5 {[%clk 0:01:19]} 17. Nxe5 {[%clk 0:01:45]}  Be6 {[%clk 0:01:02]} 18. a4 {[%clk 0:01:34]}  Bd5 {[%clk 0:00:57]} 19. c4 {[%clk 0:01:31]}  Be6 {[%clk 0:00:54]} 20. Rab1 {[%clk 0:01:30]}  Rb8 {[%clk 0:00:42]} 21. a5 {[%clk 0:01:27]}  Kh8 {[%clk 0:00:43]} 22. Bf5 {[%clk 0:01:18]}  Qf6 {[%clk 0:00:26]} 23. Bg4 {[%clk 0:01:13]}  g6 {[%clk 0:00:01]} 24. d5 {[%clk 0:01:03]} 1-0


[Site "https://www.chess.com"]

[Event "Titled Tuesday Blitz April 11 Late 2023"]
[White "Tomaszewski, Kacper"]
[Black "Seletsky, Grigory"]
[WhiteFideId "1127373"]
[BlackFideId "14112191"]
[WhiteElo "2211"]
[BlackElo "2490"]
[Result "1-0"]
[Round "09"]
[TimeControl "180+2"]
[Date "2023.04.11"]
[WhiteClock "0:00:26"]
[BlackClock "0:00:07"]

1. c4 {[%clk 0:03:00]}  c6 {[%clk 0:02:56]} 2. d4 {[%clk 0:02:58]}  d5 {[%clk 0:02:56]} 3. Nc3 {[%clk 0:02:59]}  Nf6 {[%clk 0:02:56]} 4. cxd5 {[%clk 0:02:57]}  cxd5 {[%clk 0:02:55]} 5. Bg5 {[%clk 0:02:58]}  Nc6 {[%clk 0:02:54]} 6. Bxf6 {[%clk 0:02:57]}  gxf6 {[%clk 0:02:53]} 7. e3 {[%clk 0:02:55]}  e6 {[%clk 0:02:53]} 8. Nge2 {[%clk 0:02:51]}  f5 {[%clk 0:02:53]} 9. g3 {[%clk 0:02:50]}  Bd6 {[%clk 0:02:52]} 10. Bg2 {[%clk 0:02:51]}  O-O {[%clk 0:02:52]} 11. O-O {[%clk 0:02:51]}  a6 {[%clk 0:02:51]} 12. Rc1 {[%clk 0:02:51]}  Bd7 {[%clk 0:02:50]} 13. Na4 {[%clk 0:02:51]}  Rc8 {[%clk 0:02:46]} 14. Nc5 {[%clk 0:02:49]}  Rc7 {[%clk 0:02:34]} 15. Nf4 {[%clk 0:02:41]}  Bc8 {[%clk 0:02:32]} 16. Qh5 {[%clk 0:02:27]}  Qf6 {[%clk 0:02:23]} 17. Rc3 {[%clk 0:02:21]}  Rd8 {[%clk 0:01:22]} 18. Rfc1 {[%clk 0:02:18]}  Bxc5 {[%clk 0:01:00]} 19. Rxc5 {[%clk 0:02:16]}  Bd7 {[%clk 0:01:01]} 20. Bxd5 {[%clk 0:02:07]}  exd5 {[%clk 0:00:59]} 21. Nxd5 {[%clk 0:02:06]}  Qd6 {[%clk 0:00:59]} 22. Qg5+ {[%clk 0:02:05]}  Kh8 {[%clk 0:00:57]} 23. e4 {[%clk 0:01:55]}  fxe4 {[%clk 0:00:52]} 24. Nxc7 {[%clk 0:01:50]}  Rg8 {[%clk 0:00:46]} 25. Rxc6 {[%clk 0:01:39]}  Bxc6 {[%clk 0:00:44]} 26. Qe5+ {[%clk 0:01:37]}  Qxe5 {[%clk 0:00:43]} 27. dxe5 {[%clk 0:01:38]}  Rc8 {[%clk 0:00:41]} 28. Nd5 {[%clk 0:01:38]}  Rd8 {[%clk 0:00:40]} 29. Ne3 {[%clk 0:01:31]}  Rd2 {[%clk 0:00:37]} 30. Rc2 {[%clk 0:01:27]}  Rd3 {[%clk 0:00:28]} 31. Kf1 {[%clk 0:01:23]}  Kg8 {[%clk 0:00:24]} 32. Nf5 {[%clk 0:01:20]}  Kf8 {[%clk 0:00:18]} 33. Ke2 {[%clk 0:01:09]}  Ke8 {[%clk 0:00:16]} 34. Rd2 {[%clk 0:00:49]}  Bb5 {[%clk 0:00:13]} 35. Rxd3 {[%clk 0:00:47]}  Bxd3+ {[%clk 0:00:14]} 36. Ke3 {[%clk 0:00:47]}  Kd7 {[%clk 0:00:14]} 37. Nd4 {[%clk 0:00:44]}  Bb1 {[%clk 0:00:13]} 38. a3 {[%clk 0:00:44]}  Kc7 {[%clk 0:00:12]} 39. b4 {[%clk 0:00:43]}  Kb6 {[%clk 0:00:11]} 40. h4 {[%clk 0:00:39]}  a5 {[%clk 0:00:12]} 41. g4 {[%clk 0:00:39]}  axb4 {[%clk 0:00:12]} 42. axb4 {[%clk 0:00:39]}  Ka6 {[%clk 0:00:13]} 43. g5 {[%clk 0:00:37]}  Kb6 {[%clk 0:00:12]} 44. h5 {[%clk 0:00:37]}  Kc7 {[%clk 0:00:10]} 45. e6 {[%clk 0:00:31]}  fxe6 {[%clk 0:00:10]} 46. g6 {[%clk 0:00:30]}  hxg6 {[%clk 0:00:09]} 47. h6 {[%clk 0:00:30]}  e5 {[%clk 0:00:08]} 48. Nb5+ {[%clk 0:00:26]}  Kb6 {[%clk 0:00:07]} 49. h7 {[%clk 0:00:26]}  Kxb5 {[%clk 0:00:08]} 50. h8=Q {[%clk 0:00:26]}  Kxb4 {[%clk 0:00:08]} 51. Qxe5 {[%clk 0:00:26]}  b5 {[%clk 0:00:07]} 52. Qb2+ {[%clk 0:00:26]} 1-0


[Site "https://www.chess.com"]

[Event "Titled Tuesday Blitz April 11 Late 2023"]
[White "Garcia Cuenca, Victor"]
[Black "Karamsetty, Jeevan"]
[WhiteFideId "2250829"]
[BlackFideId "2025337"]
[WhiteElo "2329"]
[BlackElo "2111"]
[Result "1-0"]
[Round "09"]
[TimeControl "180+2"]
[Date "2023.04.11"]
[WhiteClock "0:00:17"]
[BlackClock "0:00:09"]

1. Nf3 {[%clk 0:03:00]}  g6 {[%clk 0:02:57]} 2. g3 {[%clk 0:02:59]}  Bg7 {[%clk 0:02:57]} 3. Bg2 {[%clk 0:03:00]}  d6 {[%clk 0:02:57]} 4. O-O {[%clk 0:03:01]}  Nf6 {[%clk 0:02:57]} 5. b3 {[%clk 0:03:00]}  O-O {[%clk 0:02:53]} 6. Bb2 {[%clk 0:03:00]}  a5 {[%clk 0:02:53]} 7. c4 {[%clk 0:02:49]}  e5 {[%clk 0:02:45]} 8. d4 {[%clk 0:02:47]}  exd4 {[%clk 0:02:44]} 9. Nxd4 {[%clk 0:02:46]}  Na6 {[%clk 0:02:33]} 10. Nc3 {[%clk 0:02:46]}  Rb8 {[%clk 0:02:29]} 11. Ndb5 {[%clk 0:02:35]}  Bd7 {[%clk 0:02:24]} 12. Qd2 {[%clk 0:02:33]}  b6 {[%clk 0:02:17]} 13. Rad1 {[%clk 0:02:24]}  Re8 {[%clk 0:02:13]} 14. Rfe1 {[%clk 0:02:22]}  Nc5 {[%clk 0:02:06]} 15. Qc2 {[%clk 0:02:06]}  Qc8 {[%clk 0:01:55]} 16. Na7 {[%clk 0:01:57]}  Bf5 {[%clk 0:01:40]} 17. e4 {[%clk 0:01:47]}  Qb7 {[%clk 0:00:56]} 18. exf5 {[%clk 0:01:42]}  Qxa7 {[%clk 0:00:56]} 19. Nb5 {[%clk 0:01:37]}  Qa6 {[%clk 0:00:41]} 20. fxg6 {[%clk 0:01:17]}  hxg6 {[%clk 0:00:35]} 21. Nxc7 {[%clk 0:01:13]}  Rxe1+ {[%clk 0:00:34]} 22. Rxe1 {[%clk 0:01:14]}  Qc8 {[%clk 0:00:34]} 23. Nd5 {[%clk 0:01:07]}  Nxd5 {[%clk 0:00:34]} 24. Bxd5 {[%clk 0:01:04]}  Qg4 {[%clk 0:00:17]} 25. Re7 {[%clk 0:00:44]}  Rf8 {[%clk 0:00:12]} 26. Bxg7 {[%clk 0:00:29]}  Kxg7 {[%clk 0:00:12]} 27. Qc3+ {[%clk 0:00:27]}  Kg8 {[%clk 0:00:10]} 28. Qe3 {[%clk 0:00:26]}  Qd1+ {[%clk 0:00:09]} 29. Kg2 {[%clk 0:00:26]}  Qh5 {[%clk 0:00:09]} 30. Rxf7 {[%clk 0:00:24]}  Qxd5+ {[%clk 0:00:06]} 31. cxd5 {[%clk 0:00:24]}  Kxf7 {[%clk 0:00:06]} 32. a3 {[%clk 0:00:21]}  Re8 {[%clk 0:00:04]} 33. Qf3+ {[%clk 0:00:21]}  Ke7 {[%clk 0:00:04]} 34. b4 {[%clk 0:00:22]}  axb4 {[%clk 0:00:04]} 35. axb4 {[%clk 0:00:22]}  Nd7 {[%clk 0:00:04]} 36. Qe4+ {[%clk 0:00:21]}  Ne5 {[%clk 0:00:04]} 37. f4 {[%clk 0:00:20]}  Kf6 {[%clk 0:00:05]} 38. fxe5+ {[%clk 0:00:20]}  Rxe5 {[%clk 0:00:06]} 39. Qf3+ {[%clk 0:00:18]}  Ke7 {[%clk 0:00:06]} 40. h4 {[%clk 0:00:18]}  b5 {[%clk 0:00:06]} 41. g4 {[%clk 0:00:18]}  Ke8 {[%clk 0:00:05]} 42. h5 {[%clk 0:00:18]}  gxh5 {[%clk 0:00:05]} 43. gxh5 {[%clk 0:00:19]}  Ke7 {[%clk 0:00:05]} 44. Kh3 {[%clk 0:00:18]}  Re1 {[%clk 0:00:04]} 45. Kh4 {[%clk 0:00:17]}  Re5 {[%clk 0:00:04]} 46. h6 {[%clk 0:00:17]}  Kd7 {[%clk 0:00:03]} 47. h7 {[%clk 0:00:17]}  Re8 {[%clk 0:00:03]} 48. Qf7+ {[%clk 0:00:17]}  Re7 {[%clk 0:00:02]} 49. Qxe7+ {[%clk 0:00:17]}  Kxe7 {[%clk 0:00:03]} 50. h8=Q {[%clk 0:00:17]}  Kf7 {[%clk 0:00:04]} 51. Qh6 {[%clk 0:00:16]}  Kg8 {[%clk 0:00:04]} 52. Qe6+ {[%clk 0:00:17]}  Kg7 {[%clk 0:00:05]} 53. Qxd6 {[%clk 0:00:17]}  Kh8 {[%clk 0:00:06]} 54. Qe6 {[%clk 0:00:18]}  Kh7 {[%clk 0:00:07]} 55. d6 {[%clk 0:00:18]}  Kg7 {[%clk 0:00:07]} 56. d7 {[%clk 0:00:18]}  Kf8 {[%clk 0:00:08]} 57. d8=Q+ {[%clk 0:00:17]}  Kg7 {[%clk 0:00:09]} 58. Qdg8# {[%clk 0:00:17]} 1-0


[Site "https://www.chess.com"]